fUST/lending_fUST_20240824
["ID","MTS","AMOUNT","RATE_DAILY","PERIOD"]
[335742975,1724472646312,-1014.35,0.00013698,2]
[335742977,1724472646321,-987.1,0.00013698,2]
[335742979,1724472646330,-500.0,0.00013698,2]
[335742981,1724472646339,-500.0,0.00013698,2]
[335742983,1724472646349,-524.10641745,0.00013698,2]
[335742985,1724472646359,-500.0,0.00013698,2]
[335742987,1724472646368,-576.51,0.00013698,2]
[335742988,1724472646377,-500.0,0.00013698,2]
[335742989,1724472646386,-500.0,0.00013698,2]
[335742990,1724472646395,-500.0,0.00013698,2]
[335742991,1724472646404,-500.0,0.00013698,2]
[335742992,1724472646414,-10148.37,0.00013698,2]
[335742993,1724472646423,-500.0,0.00013698,2]
[335742994,1724472646432,-500.0,0.00013698,2]
[335742995,1724472646440,-900.52,0.00013698,2]
[335742996,1724472646449,-580.44,0.00013698,2]
[335742997,1724472646459,-500.0,0.00013698,2]
[335742998,1724472646468,-500.0,0.00013698,2]
[335742999,1724472646478,-521.09788376,0.00013698,2]
[335743000,1724472646487,-506.51205124,0.00013698,2]
[335743001,1724472646496,-1524.26,0.00013698,2]
[335743002,1724472646505,-500.0,0.00013698,2]
[335743003,1724472646514,-500.0,0.00013698,2]
[335743004,1724472646526,-500.0,0.00013698,2]
[335743005,1724472646536,-500.0,0.00013698,2]
[335743006,1724472646545,-500.0,0.00013698,2]
[335743007,1724472646554,-500.0,0.00013698,2]
[335743008,1724472646564,-500.0,0.00013698,2]
[335743009,1724472646576,-207.3916535,0.00013698,2]
[335743010,1724472646593,-500.0,0.00013698,2]
[335743011,1724472646605,-500.0,0.00013698,2]
[335743012,1724472646615,-451.39342568,0.00013698,2]
[335743013,1724472646624,-500.9895342,0.00013698,2]
[335743014,1724472646633,-500.0,0.00013698,2]
[335743015,1724472646643,-2911.26,0.00013698,2]
[335743016,1724472646652,-500.0,0.00013698,2]
[335743017,1724472646661,-500.0,0.00013698,2]
[335743018,1724472646671,-1060.69,0.00013698,2]
[335743019,1724472646680,-500.0,0.00013698,2]
[335743020,1724472646690,-1060.69,0.00013698,2]
[335743021,1724472646701,-4811.84,0.00013698,2]
[335743023,1724472646711,-796.78419401,0.00013698,2]
[335743027,1724472646761,-263.90580599,0.00013698,2]
[335743028,1724472646770,-992.54075982,0.00013698,2]
[335743065,1724472647496,-68.14924018,0.00013698,2]
[335743066,1724472647506,-447.99811346,0.00013698,2]
[335743067,1724472647518,-52.00188654,0.00013698,2]
[335743068,1724472647527,-1060.69,0.00013698,2]
[335743069,1724472647537,-1060.69,0.00013698,2]
[335743070,1724472647547,-1060.69,0.00013698,2]
[335743071,1724472647556,-877.12141337,0.00013698,2]
[335743077,1724472648444,-183.56858663,0.00013698,2]
[335743078,1724472648453,-536.09320297,0.00013698,2]
[335743079,1724472648465,-524.59679703,0.00013698,2]
[335743080,1724472648475,-1060.69,0.00013698,2]
[335743081,1724472648484,-1060.69,0.00013698,2]
[335743082,1724472648496,-1060.69,0.00013698,2]
[335743083,1724472648506,-500.85815529,0.00013698,2]
[335743084,1724472648515,-1618.54,0.00013698,2]
[335743085,1724472648525,-980.99,0.00013698,2]
[335743086,1724472648534,-1060.69,0.00013698,2]
[335743087,1724472648543,-1060.69,0.00013698,2]
[335743088,1724472648553,-1060.69,0.00013698,2]
[335743089,1724472648562,-500.0,0.00013698,2]
[335743090,1724472648572,-1060.69,0.00013698,2]
[335743091,1724472648582,-500.0,0.00013698,2]
[335743092,1724472648592,-1060.69,0.00013698,2]
[335743093,1724472648601,-501.5733447,0.00013698,2]
[335743094,1724472648610,-430.44001007,0.00013698,2]
[335743095,1724472648619,-500.0,0.00013698,2]
[335743096,1724472648629,-500.0,0.00013698,2]
[335743097,1724472648639,-699.13,0.00013698,2]
[335743098,1724472648648,-2288.05,0.00013698,2]
[335743099,1724472648658,-1238.19,0.00013698,2]
[335743100,1724472648667,-500.0,0.00013698,2]
[335743101,1724472648677,-500.0,0.00013698,2]
[335743102,1724472648686,-177.59616055,0.00013698,2]
[335743103,1724472648696,-500.0,0.00013698,2]
[335743104,1724472648706,-443.15499385,0.00013698,2]
[335743105,1724472648715,-500.0,0.00013698,2]
[335743106,1724472648725,-2196.42,0.00013698,2]
[335743107,1724472648735,-6706.13,0.00013698,2]
[335743108,1724472648744,-377.1852082,0.00013698,2]
[335743109,1724472648755,-500.0,0.00013698,2]
[335743110,1724472648765,-501.81230016,0.00013698,2]
[335743111,1724472648774,-755.36,0.00013698,2]
[335743112,1724472648784,-500.0,0.00013698,2]
[335743113,1724472648794,-500.0,0.00013698,2]
[335743114,1724472648803,-1117.25,0.00013698,2]
[335743115,1724472648813,-723.2,0.00013698,2]
[335743116,1724472648822,-500.0,0.00013698,2]
[335743117,1724472648832,-500.0,0.00013698,2]
[335743118,1724472648842,-1294.37,0.00013698,2]
[335743119,1724472648851,-2368.24,0.00013698,2]
[335743120,1724472648861,-500.41907596,0.00013698,2]
[335743121,1724472648871,-500.0,0.00013698,2]
[335743122,1724472648881,-500.0,0.00013698,2]
[335743123,1724472648891,-3692.17,0.00013698,2]
[335743124,1724472648902,-500.0,0.00013698,2]
[335743125,1724472648912,-12011.25,0.00013698,2]
[335743126,1724472648921,-500.0,0.00013698,2]
[335743127,1724472648931,-725.65,0.00013698,2]
[335743128,1724472648940,-500.0,0.00013698,2]
[335743129,1724472648951,-464.28113837,0.00013698,2]
[335743130,1724472648960,-500.0,0.00013698,2]
[335743131,1724472648970,-500.0,0.00013698,2]
[335743132,1724472648979,-693.36,0.00013698,2]
[335743133,1724472648989,-1149.07,0.00013698,2]
[335743134,1724472648999,-1105.63,0.00013698,2]
[335743135,1724472649009,-293.91923949,0.00013698,2]
[335743136,1724472649018,-500.0,0.00013698,2]
[335743137,1724472649029,-500.0,0.00013698,2]
[335743138,1724472649039,-500.0,0.00013698,2]
[335743139,1724472649049,-504.04700606,0.00013698,2]
[335743140,1724472649058,-776.69,0.00013698,2]
[335743141,1724472649068,-500.0,0.00013698,2]
[335743142,1724472649078,-999.64,0.00013698,2]
[335743143,1724472649088,-503.35788423,0.00013698,2]
[335743144,1724472649099,-500.0,0.00013698,2]
[335743145,1724472649108,-1991.38,0.00013698,2]
[335743146,1724472649118,-501.11184243,0.00013698,2]
[335743147,1724472649127,-20458.98,0.00013698,2]
[335743148,1724472649137,-500.607898,0.00013698,2]
[335743149,1724472649146,-506.11145161,0.00013698,2]
[335743150,1724472649156,-3728.42,0.00013698,2]
[335743151,1724472649165,-2714.33,0.00013698,2]
[335743152,1724472649176,-500.0,0.00013698,2]
[335743153,1724472649188,-500.0,0.00013698,2]
[335743154,1724472649197,-500.0,0.00013698,2]
[335743155,1724472649207,-500.0,0.00013698,2]
[335743156,1724472649216,-502.53864449,0.00013698,2]
[335743157,1724472649225,-500.0,0.00013698,2]
[335743158,1724472649235,-500.0,0.00013698,2]
[335743159,1724472649244,-3421.37,0.00013698,2]
[335743160,1724472649254,-500.0,0.00013698,2]
[335743161,1724472649264,-605.11,0.00013698,2]
[335743162,1724472649274,-3974.8,0.00013698,2]
[335743163,1724472649284,-883.54,0.00013698,2]
[335743164,1724472649293,-778.16,0.00013698,2]
[335743165,1724472649303,-2854.06,0.00013698,2]
[335743166,1724472649312,-885.12,0.00013698,2]
[335743167,1724472649321,-1303.58,0.00013698,2]
[335743168,1724472649331,-500.0,0.00013698,2]
[335743169,1724472649341,-663.48,0.00013698,2]
[335743170,1724472649350,-500.0,0.00013698,2]
[335743171,1724472649359,-500.0,0.00013698,2]
[335743172,1724472649369,-2095.74,0.00013698,2]
[335743173,1724472649378,-500.0,0.00013698,2]
[335743174,1724472649388,-533.12472795,0.00013698,2]
[335743175,1724472649399,-3910.79,0.00013698,2]
[335743176,1724472649408,-1647.82,0.00013698,2]
[335743177,1724472649418,-500.0,0.00013698,2]
[335743178,1724472649428,-2625.55,0.00013698,2]
[335743179,1724472649438,-13914.56,0.00013698,2]
[335743180,1724472649447,-10332.39,0.00013698,2]
[335743181,1724472649456,-1022.16,0.00013698,2]
[335743182,1724472649466,-1036.11,0.00013698,2]
[335743183,1724472649476,-500.0,0.00013698,2]
[335743184,1724472649486,-500.0,0.00013698,2]
[335743185,1724472649496,-1008.99,0.00013698,2]
[335743186,1724472649506,-946.66,0.00013698,2]
[335743187,1724472649516,-528.3863952,0.00013698,2]
[335743188,1724472649525,-500.0,0.00013698,2]
[335743189,1724472649535,-602.76,0.00013698,2]
[335743190,1724472649544,-2003.93,0.00013698,2]
[335743191,1724472649553,-543.41771865,0.00013698,2]
[335743192,1724472649563,-1636.85,0.00013698,2]
[335743193,1724472649573,-615.94,0.00013698,2]
[335743194,1724472649582,-1471.4,0.00013698,2]
[335743195,1724472649591,-500.0,0.00013698,2]
[335743196,1724472649601,-614.56,0.00013698,2]
[335743197,1724472649610,-1286.12,0.00013698,2]
[335743198,1724472649619,-500.0,0.00013698,2]
[335743199,1724472649629,-500.0,0.00013698,2]
[335743200,1724472649638,-500.0,0.00013698,2]
[335743201,1724472649647,-701.58,0.00013698,2]
[335743202,1724472649657,-500.0,0.00013698,2]
[335743203,1724472649666,-1261.49,0.00013698,2]
[335743204,1724472649676,-500.0,0.00013698,2]
[335743205,1724472649685,-500.0,0.00013698,2]
[335743206,1724472649695,-645.17,0.00013698,2]
[335743207,1724472649705,-3165.38,0.00013698,2]
[335743208,1724472649714,-9524.51,0.00013698,2]
[335743209,1724472649724,-14688.01,0.00013698,2]
[335743210,1724472649733,-500.0,0.00013698,2]
[335743211,1724472649743,-500.0,0.00013698,2]
[335743212,1724472649752,-500.0,0.00013698,2]
[335743213,1724472649762,-1716.46,0.00013698,2]
[335743214,1724472649771,-1113.22,0.00013698,2]
[335743215,1724472649780,-1113.22,0.00013698,2]
[335743216,1724472649790,-1113.22,0.00013698,2]
[335743217,1724472649799,-1113.22,0.00013698,2]
[335743218,1724472649809,-1113.22,0.00013698,2]
[335743219,1724472649819,-1113.22,0.00013698,2]
[335743220,1724472649833,-500.0,0.00013698,2]
[335743221,1724472649843,-1113.22,0.00013698,2]
[335743222,1724472649853,-1113.22,0.00013698,2]
[335743223,1724472649863,-1113.22,0.00013698,2]
[335743224,1724472649873,-1113.22,0.00013698,2]
[335743225,1724472649884,-2263.7,0.00013698,2]
[335743226,1724472649893,-1113.22,0.00013698,2]
[335743227,1724472649902,-1113.22,0.00013698,2]
[335743228,1724472649911,-1113.22,0.00013698,2]
[335743229,1724472649920,-500.0,0.00013698,2]
[335743230,1724472649929,-1113.22,0.00013698,2]
[335743231,1724472649939,-1113.22,0.00013698,2]
[335743232,1724472649948,-500.0,0.00013698,2]
[335743233,1724472649959,-1113.22,0.00013698,2]
[335743234,1724472649968,-1113.22,0.00013698,2]
[335743235,1724472649978,-500.0,0.00013698,2]
[335743236,1724472650121,-1290.36,0.00013698,2]
[335743237,1724472650132,-500.0,0.00013698,2]
[335743238,1724472650142,-929.91,0.00013698,2]
[335743239,1724472650151,-500.37530072,0.00013698,2]
[335743240,1724472650161,-500.0,0.00013698,2]
[335743241,1724472650170,-500.0,0.00013698,2]
[335743242,1724472650180,-516.71,0.00013698,2]
[335743243,1724472650190,-725.7,0.00013698,2]
[335743244,1724472650201,-500.0,0.00013698,2]
[335743245,1724472650211,-500.0,0.00013698,2]
[335743246,1724472650220,-500.0,0.00013698,2]
[335743247,1724472650230,-2417.02,0.00013698,2]
[335743248,1724472650239,-500.0,0.00013698,2]
[335743249,1724472650248,-500.0,0.00013698,2]
[335743250,1724472650258,-500.0,0.00013698,2]
[335743251,1724472650267,-586.3,0.00013698,2]
[335743252,1724472650278,-2411.37,0.00013698,2]
[335743253,1724472650287,-500.0,0.00013698,2]
[335743254,1724472650296,-500.0,0.00013698,2]
[335743255,1724472650306,-564.65068328,0.00013698,2]
[335743256,1724472650316,-500.0,0.00013698,2]
[335743257,1724472650331,-1275.9,0.00013698,2]
[335743258,1724472650345,-500.0,0.00013698,2]
[335743259,1724472650354,-500.0,0.00013698,2]
[335743260,1724472650363,-1359.87,0.00013698,2]
[335743261,1724472650372,-502.29850537,0.00013698,2]
[335743262,1724472650383,-500.0,0.00013698,2]
[335743263,1724472650392,-500.0,0.00013698,2]
[335743264,1724472650401,-3439.97,0.00013698,2]
[335743265,1724472650411,-6765.43,0.00013698,2]
[335743266,1724472650421,-500.0,0.00013698,2]
[335743267,1724472650431,-1844.31,0.00013698,2]
[335743268,1724472650439,-500.0,0.00013698,2]
[335743269,1724472650448,-12943.03,0.00013698,2]
[335743270,1724472650458,-1555.53,0.00013698,2]
[335743271,1724472650467,-500.0,0.00013698,2]
[335743272,1724472650477,-829.15,0.00013698,2]
[335743273,1724472650486,-500.0,0.00013698,2]
[335743274,1724472650495,-908.4,0.00013698,2]
[335743275,1724472650506,-981.08,0.00013698,2]
[335743276,1724472650516,-3131.53,0.00013698,2]
[335743277,1724472650525,-500.11097897,0.00013698,2]
[335743278,1724472650535,-500.0,0.00013698,2]
[335743279,1724472650544,-500.0,0.00013698,2]
[335743280,1724472650553,-500.0,0.00013698,2]
[335743281,1724472650562,-509.55102606,0.00013698,2]
[335743282,1724472650573,-500.97197037,0.00013698,2]
[335743283,1724472650582,-898.82,0.00013698,2]
[335743284,1724472650593,-1975.72,0.00013698,2]
[335743285,1724472650602,-500.0,0.00013698,2]
[335743286,1724472650611,-1084.68,0.00013698,2]
[335743287,1724472650621,-500.0,0.00013698,2]
[335743288,1724472650631,-500.0,0.00013698,2]
[335743289,1724472650641,-1264.36,0.00013698,2]
[335743290,1724472650650,-500.0,0.00013698,2]
[335743291,1724472650660,-500.0,0.00013698,2]
[335743292,1724472650670,-500.0,0.00013698,2]
[335743293,1724472650679,-720.91,0.00013698,2]
[335743294,1724472650690,-500.0,0.00013698,2]
[335743295,1724472650699,-2945.52,0.00013698,2]
[335743296,1724472650708,-503.05914512,0.00013698,2]
[335743297,1724472650718,-500.0,0.00013698,2]
[335743298,1724472650727,-505.43898382,0.00013698,2]
[335743299,1724472650736,-500.0,0.00013698,2]
[335743300,1724472650746,-500.0,0.00013698,2]
[335743301,1724472650755,-500.0,0.00013698,2]
[335743302,1724472650765,-500.0,0.00013698,2]
[335743303,1724472650774,-500.0,0.00013698,2]
[335743304,1724472650786,-500.0,0.00013698,2]
[335743305,1724472650796,-1457.5163,0.00013698,2]
[335743306,1724472650806,-1457.5163,0.00013698,2]
[335743307,1724472650816,-500.0,0.00013698,2]
[335743308,1724472650828,-500.0,0.00013698,2]
[335743309,1724472650839,-1397.91,0.00013698,2]
[335743310,1724472650848,-1792.06,0.00013698,2]
[335743311,1724472650858,-500.0,0.00013698,2]
[335743312,1724472650867,-1457.5163,0.00013698,2]
[335743313,1724472650877,-500.0,0.00013698,2]
[335743314,1724472650886,-502.68932578,0.00013698,2]
[335743315,1724472650895,-1457.5163,0.00013698,2]
[335743316,1724472650905,-500.0,0.00013698,2]
[335743317,1724472650914,-500.0,0.00013698,2]
[335743318,1724472650923,-500.0,0.00013698,2]
[335743319,1724472650933,-500.0,0.00013698,2]
[335743320,1724472650943,-501.11720891,0.00013698,2]
[335743321,1724472650953,-500.0,0.00013698,2]
[335743322,1724472650963,-500.0,0.00013698,2]
[335743323,1724472650972,-1135.22,0.00013698,2]
[335743324,1724472650983,-500.0,0.00013698,2]
[335743325,1724472650992,-153.981047,0.00013699,2]
[335743326,1724472651001,-153.981047,0.00013699,2]
[335743327,1724472651010,-151.0,0.00013699,2]
[335743328,1724472651021,-151.0,0.00013699,2]
[335743329,1724472651031,-151.0,0.00013699,2]
[335743330,1724472651040,-151.0,0.00013699,2]
[335743331,1724472651049,-151.0,0.00013699,2]
[335743332,1724472651058,-151.0,0.00013699,2]
[335743333,1724472651067,-151.0,0.00013699,2]
[335743334,1724472651080,-225.714086,0.00013699,2]
[335743335,1724472651089,-225.714086,0.00013699,2]
[335743336,1724472651100,-151.0,0.00013699,2]
[335743337,1724472651109,-151.0,0.00013699,2]
[335743338,1724472651120,-151.0,0.00013699,2]
[335743339,1724472651129,-151.0,0.00013699,2]
[335743340,1724472651139,-151.0,0.00013699,2]
[335743341,1724472651149,-151.0,0.00013699,2]
[335743342,1724472651158,-151.0,0.00013699,2]
[335743343,1724472651168,-214.938096,0.00013699,2]
[335743344,1724472651179,-214.938096,0.00013699,2]
[335743345,1724472651189,-2134.705053,0.00013699,2]
[335743346,1724472651198,-2134.705053,0.00013699,2]
[335743347,1724472651208,-3000.0,0.00013699,2]
[335743348,1724472651217,-151.0,0.00013699,2]
[335743349,1724472651227,-204.026499,0.00013699,2]
[335743350,1724472651236,-204.026499,0.00013699,2]
[335743351,1724472651245,-197.123887,0.00013699,2]
[335743352,1724472651254,-770.534569,0.00013699,2]
[335743353,1724472651263,-151.0,0.00013699,2]
[335743354,1724472651272,-197.123887,0.00013699,2]
[335743355,1724472651281,-770.534569,0.00013699,2]
[335743356,1724472651291,-650.059302,0.00013699,2]
[335743357,1724472651301,-4588.09141,0.00013699,2]
[335743358,1724472651310,-650.059302,0.00013699,2]
[335743359,1724472651320,-4588.09141,0.00013699,2]
[335743360,1724472651330,-1375.70694,0.00013699,2]
[335743361,1724472651340,-1375.70694,0.00013699,2]
[335743362,1724472651350,-203.559079,0.00013699,2]
[335743363,1724472651360,-203.559079,0.00013699,2]
[335743364,1724472651369,-458.491436,0.00013699,2]
[335743365,1724472651379,-458.491436,0.00013699,2]
[335743366,1724472651389,-458.491436,0.00013699,2]
[335743367,1724472651399,-458.491436,0.00013699,2]
[335743368,1724472651408,-1724.856854,0.00013699,2]
[335743369,1724472651418,-1724.856854,0.00013699,2]
[335743370,1724472651428,-1724.856854,0.00013699,2]
[335743371,1724472651438,-1724.856854,0.00013699,2]
[335743372,1724472651447,-151.0,0.00013699,2]
[335743373,1724472651456,-151.0,0.00013699,2]
[335743374,1724472651465,-153.505588,0.00013699,2]
[335743375,1724472651475,-950.259632,0.00013699,2]
[335743376,1724472651484,-950.259632,0.00013699,2]
[335743377,1724472651495,-950.259632,0.00013699,2]
[335743378,1724472651505,-950.259632,0.00013699,2]
[335743379,1724472651514,-151.386232,0.00013699,2]
[335743380,1724472651523,-383.136542,0.00013699,2]
[335743381,1724472651533,-383.136542,0.00013699,2]
[335743382,1724472651543,-383.136542,0.00013699,2]
[335743383,1724472651553,-383.136542,0.00013699,2]
[335743384,1724472651563,-1842.965096,0.00013699,2]
[335743385,1724472651573,-1842.965096,0.00013699,2]
[335743386,1724472651584,-1842.965096,0.00013699,2]
[335743387,1724472651594,-1842.965096,0.00013699,2]
[335743388,1724472651603,-1040.786388,0.00013699,2]
[335743389,1724472651612,-1040.786388,0.00013699,2]
[335743390,1724472651622,-1040.786388,0.00013699,2]
[335743391,1724472651631,-1040.786388,0.00013699,2]
[335743392,1724472651640,-3113.003741,0.00013699,2]
[335743393,1724472651650,-3113.003741,0.00013699,2]
[335743394,1724472651661,-475.114896,0.00013699,2]
[335743395,1724472651671,-475.114896,0.00013699,2]
[335743396,1724472651680,-3113.003741,0.00013699,2]
[335743397,1724472651692,-3113.003741,0.00013699,2]
[335743398,1724472651702,-475.114896,0.00013699,2]
[335743399,1724472651711,-475.114896,0.00013699,2]
[335743400,1724472651722,-3473.52011,0.00013699,2]
[335743401,1724472651732,-3473.52011,0.00013699,2]
[335743402,1724472651743,-3473.52011,0.00013699,2]
[335743403,1724472651753,-3473.52011,0.00013699,2]
[335743404,1724472651762,-2504.499866,0.00013699,2]
[335743405,1724472651773,-151.0,0.00013699,2]
[335743406,1724472651782,-151.0,0.00013699,2]
[335743407,1724472651792,-151.0,0.00013699,2]
[335743408,1724472651802,-151.0,0.00013699,2]
[335743409,1724472651812,-489.20911,0.00013699,2]
[335743410,1724472651823,-489.20911,0.00013699,2]
[335743411,1724472651833,-489.20911,0.00013699,2]
[335743412,1724472651843,-198.403384,0.00013699,2]
[335743413,1724472651853,-489.20911,0.00013699,2]
[335743414,1724472651862,-220.157913,0.00013699,2]
[335743415,1724472651872,-198.403384,0.00013699,2]
[335743416,1724472651882,-220.157913,0.00013699,2]
[335743417,1724472651891,-198.403384,0.00013699,2]
[335743418,1724472651901,-198.403384,0.00013699,2]
[335743419,1724472651911,-220.157913,0.00013699,2]
[335743420,1724472651920,-220.157913,0.00013699,2]
[335743421,1724472651929,-202.319256,0.00013699,2]
[335743422,1724472651940,-202.319256,0.00013699,2]
[335743423,1724472651950,-151.187678,0.00013699,2]
[335743424,1724472651959,-202.319256,0.00013699,2]
[335743425,1724472651969,-202.319256,0.00013699,2]
[335743426,1724472651978,-151.0,0.00013699,2]
[335743427,1724472651987,-151.0,0.00013699,2]
[335743428,1724472651996,-151.0,0.00013699,2]
[335743429,1724472652006,-151.0,0.00013699,2]
[335743430,1724472652016,-151.0,0.00013699,2]
[335743431,1724472652025,-151.0,0.00013699,2]
[335743432,1724472652035,-151.0,0.00013699,2]
[335743433,1724472652044,-151.0,0.00013699,2]
[335743434,1724472652054,-151.0,0.00013699,2]
[335743435,1724472652063,-151.0,0.00013699,2]
[335743436,1724472652073,-151.0,0.00013699,2]
[335743437,1724472652083,-151.0,0.00013699,2]
[335743438,1724472652094,-1062.223595,0.00013699,2]
[335743439,1724472652105,-1062.223595,0.00013699,2]
[335743440,1724472652114,-404.775623,0.00013699,2]
[335743441,1724472652123,-404.775623,0.00013699,2]
[335743442,1724472652135,-1062.223595,0.00013699,2]
[335743443,1724472652145,-1062.223595,0.00013699,2]
[335743444,1724472652155,-404.775623,0.00013699,2]
[335743445,1724472652165,-404.775623,0.00013699,2]
[335743446,1724472652177,-817.54379943,0.00013699,2]
[335743447,1724472652189,-817.54379943,0.00013699,2]
[335743448,1724472652199,-817.54379943,0.00013699,2]
[335743449,1724472652208,-817.54379943,0.00013699,2]
[335743450,1724472652217,-817.54379943,0.00013699,2]
[335743451,1724472652226,-817.54379943,0.00013699,2]
[335743452,1724472652236,-817.54379943,0.00013699,2]
[335743453,1724472652244,-817.54379943,0.00013699,2]
[335743454,1724472652254,-817.54379943,0.00013699,2]
[335743455,1724472652263,-817.54379943,0.00013699,2]
[335743456,1724472652272,-817.54379943,0.00013699,2]
[335743457,1724472652281,-817.54379943,0.00013699,2]
[335743458,1724472652291,-817.54379943,0.00013699,2]
[335743459,1724472652300,-817.54379943,0.00013699,2]
[335743460,1724472652309,-817.54379943,0.00013699,2]
[335743461,1724472652318,-817.54379943,0.00013699,2]
[335743462,1724472652329,-817.54379943,0.00013699,2]
[335743463,1724472652339,-817.54379943,0.00013699,2]
[335743464,1724472652349,-817.54379943,0.00013699,2]
[335743465,1724472652358,-194.91980144,0.00013699,2]
[335743466,1724472652367,-152.236117,0.00013699,2]
[335743467,1724472652378,-204.026499,0.00013699,2]
[335743468,1724472652387,-849.32128314,0.00013699,2]
[335743469,1724472652397,-849.32128314,0.00013699,2]
[335743470,1724472652407,-849.32128314,0.00013699,2]
[335743471,1724472652417,-849.32128314,0.00013699,2]
[335743472,1724472652426,-849.32128314,0.00013699,2]
[335743473,1724472652436,-849.32128314,0.00013699,2]
[335743474,1724472652445,-849.32128314,0.00013699,2]
[335743475,1724472652455,-849.32128314,0.00013699,2]
[335743476,1724472652464,-849.32128314,0.00013699,2]
[335743477,1724472652474,-849.32128314,0.00013699,2]
[335743478,1724472652484,-849.32128314,0.00013699,2]
[335743479,1724472652494,-849.32128314,0.00013699,2]
[335743480,1724472652505,-849.32128314,0.00013699,2]
[335743481,1724472652653,-849.32128314,0.00013699,2]
[335743482,1724472652662,-849.32128314,0.00013699,2]
[335743483,1724472652672,-849.32128314,0.00013699,2]
[335743484,1724472652681,-849.32128314,0.00013699,2]
[335743485,1724472652691,-849.32128314,0.00013699,2]
[335743486,1724472652701,-849.32128314,0.00013699,2]
[335743487,1724472652710,-849.32128314,0.00013699,2]
[335743488,1724472652721,-849.32128314,0.00013699,2]
[335743489,1724472652730,-849.32128314,0.00013699,2]
[335743490,1724472652740,-849.32128314,0.00013699,2]
[335743491,1724472652749,-849.32128314,0.00013699,2]
[335743492,1724472652759,-849.32128314,0.00013699,2]
[335743493,1724472652769,-849.32128314,0.00013699,2]
[335743494,1724472652780,-849.32128314,0.00013699,2]
[335743495,1724472652791,-204.026499,0.00013699,2]
[335743496,1724472652801,-151.0,0.00013699,2]
[335743497,1724472652811,-650.059302,0.00013699,2]
[335743498,1724472652823,-650.059302,0.00013699,2]
[335743499,1724472652833,-1842.965096,0.00013699,2]
[335743500,1724472652843,-1842.965096,0.00013699,2]
[335743501,1724472652854,-1040.786388,0.00013699,2]
[335743502,1724472652864,-1040.786388,0.00013699,2]
[335743503,1724472652875,-475.114896,0.00013699,2]
[335743504,1724472652886,-475.114896,0.00013699,2]
[335743505,1724472652895,-3473.52011,0.00013699,2]
[335743506,1724472652905,-3473.52011,0.00013699,2]
[335743507,1724472652915,-151.0,0.00013699,2]
[335743508,1724472652926,-151.0,0.00013699,2]
[335743509,1724472652937,-198.403384,0.00013699,2]
[335743510,1724472652947,-220.157913,0.00013699,2]
[335743511,1724472652958,-198.403384,0.00013699,2]
[335743512,1724472652968,-220.157913,0.00013699,2]
[335743513,1724472652977,-202.319256,0.00013699,2]
[335743514,1724472652987,-202.319256,0.00013699,2]
[335743515,1724472652996,-151.0,0.00013699,2]
[335743516,1724472653006,-151.0,0.00013699,2]
[335743517,1724472653015,-151.0,0.00013699,2]
[335743518,1724472653025,-151.0,0.00013699,2]
[335743519,1724472653037,-151.0,0.00013699,2]
[335743520,1724472653048,-156.094882,0.00013699,2]
[335743521,1724472653058,-404.775623,0.00013699,2]
[335743522,1724472653069,-404.775623,0.00013699,2]
[335743523,1724472653078,-1457.5163,0.00013699,2]
[335743524,1724472653088,-1457.5163,0.00013699,2]
[335743525,1724472653099,-150.112233,0.000137,2]